[Event "32nd NATO Championship 2022"]
[Site "Tartu"]
[Date "2022.06.29"]
[Round "4.2"]
[White "Pavlidis, Anastasios"]
[Black "Cichy, Kamil"]
[Result "1-0"]
[ECO "B01"]
[WhiteElo "2296"]
[BlackElo "2179"]
[Annotator "TA"]
[PlyCount "77"]
[EventDate "2022.06.27"]
[EventType "swiss"]
[EventCountry "EST"]
[SourceTitle "playchess.com"]
[Source "ChessBase"]
[SourceQuality "1"]
[TimeControl "5400+30"]

{[%evp 10,77,60,45,54,63,49,36,33,31,43,41,35,28,31,36,34,28,64,65,58,64,84,63,95,95,116,96,127,118,169,151,146,144,180,170,206,164,397,434,419,402,537,531,540,520,578,570,600,603,631,647,1097,848,996,980,1106,1087,1078,1068,5577,5734,1514,1188,29972,29973,29989,29990,29990,1427]} 1. e4 {[%emt 0:01:02]} d5 {[%emt 0:01:31]} 2. exd5 {[%emt 0:00:13]} Qxd5 {[%emt 0:00:05]} 3. Nc3 {[%emt 0:00:10]} Qd8 {[%emt 0:00:04]} 4. d4 {[%emt 0:01:17]} g6 {[%emt 0:00:53]} 5. Nf3 {[%emt 0:03:20]} Bg7 {[%emt 0:01:32]} 6. Bc4 {[%emt 0:00:54]} Nf6 {[%emt 0:03:39] Prevents Ne4. 6...Nh6 is vanishing. B01: Scandinavian Defence.} 7. O-O {[%emt 0:06:22]} O-O {[%emt 0:03:28]} 8. h3 {[%emt 0:01:06]} a6 {[%emt 0:00:43] White is slightly better.} 9. a4 {[%emt 0:01:30]} b6 {[%emt 0:10:35]} 10. Qe2 {[%emt 0:04:27]} Bb7 {[%emt 0:10:15] [#] Against d5} 11. Re1 $146 {[%emt 0:01:51]} ({Predecessor:} 11. Bg5 Nc6 12. Rad1 Nb4 13. Ne5 Nbd5 14. Nxd5 Nxd5 15. Ng4 Qd6 16. Bb3 h5 17. Ne5 {1-0 (49) Van Foreest,J (2644)-Bauer,C (2625) Chess.com INT 2020}) 11... e6 {[%emt 0:02:36]} 12. Bg5 {[%emt 0:03:00][%cal Bc1g5,Bg5h4,Bh4g3][%mdl 32]} h6 {[%emt 0:06:51]} 13. Bh4 {[%emt 0:13:11]} g5 {[%emt 0:12:08]} 14. Bg3 {[%emt 0:02:42]} Nc6 {[%emt 0:01:33]} 15. Rad1 $1 {[%emt 0:02:47]} Nb4 {[%emt 0:02:43] Against d5. White stays focused until the end.} 16. Ne5 {[%emt 0:06:29]} Nbd5 {[%emt 0:12:09]} 17. Nxd5 {[%emt 0:13:57]} exd5 {[%emt 0:06:51]} 18. Bd3 {[%emt 0:00:44] White is much more active. The black rooks are badly placed.} Ne4 {[%emt 0:00:56]} 19. Bh2 {[%emt 0:03:12]} ({Much weaker is} 19. Bxe4 $6 dxe4 20. b3 f6 $11) 19... f5 {[%emt 0:05:55]} (19... f6 $16) 20. f3 {[%emt 0:07:24]} Nd6 {[%emt 0:01:25]} 21. c3 {[%emt 0:01:10]} Qe8 {[%emt 0:08:21]} 22. Qc2 {[%emt 0:00:56][%cal Oe5c4]} Rd8 {[%emt 0:03:40]} 23. Nc4 {[%emt 0:16:28]} dxc4 {[%emt 0:00:38] [#]} (23... Qf7 {was worth a try.} 24. Nxd6 cxd6) 24. Rxe8 $18 {[%emt 0:00:24]} Rdxe8 {[%emt 0:00:53]} 25. Bxd6 {[%emt 0:01:18]} cxd3 {[%emt 0:00:07]} 26. Qb3+ {[%emt 0:00:14]} Rf7 {[%emt 0:00:03]} 27. Bxc7 {[%emt 0:00:58]} g4 {[%emt 0:00:45]} 28. Rxd3 {[%emt 0:01:09]} gxf3 {[%emt 0:00:32]} 29. gxf3 {[%emt 0:00:32]} Bf6 {[%emt 0:00:55]} 30. Be5 {[%emt 0:00:31]} Kf8 {[%emt 0:01:41]} 31. Qb4+ {[%emt 0:01:10]} Kg8 {[%emt 0:00:43]} 32. Qxb6 {[%emt 0:00:50]} Rg7+ {[%emt 0:01:04]} 33. Kf1 {[%emt 0:00:16][%cal Bg1f1,Bf1f2,Bf2g3][%mdl 32]} Bxe5 {[%emt 0:00:28]} 34. dxe5 {[%emt 0:00:06]} Rxe5 {[%emt 0:00:11]} 35. Qxh6 {[%emt 0:00:51] [#] Rd8+ would kill now.} Re8 {[%emt 0:00:35] Inhibits Rd8.} 36. Kf2 {[%emt 0:02:14]} Rge7 {[%emt 0:01:28]} 37. Rd6 {[%emt 0:00:50] White mates.} Re2+ {[%emt 0:00:28]} 38. Kg3 {[%emt 0:00:11]} f4+ {[%emt 0:00:25]} 39. Qxf4 {[%emt 0:00:39] Weighted Error Value: White=0.07 (flawless) /Black=0.59} (39. Kh4 $142 R8e7 40. Qg6+ Kh8 41. Rd8+ Re8 42. Rxe8+ Rxe8 43. Qxe8+ Kg7 44. Kg5) 1-0

[Event "32nd NATO Championship 2022"]
[Site "Tartu"]
[Date "2022.06.29"]
[Round "4.3"]
[White "Papasimakopoulos, Alexandros"]
[Black "Pedersen, Finn"]
[Result "1-0"]
[ECO "A11"]
[WhiteElo "2259"]
[BlackElo "2300"]
[Annotator "TA"]
[PlyCount "87"]
[EventDate "2022.06.27"]
[EventType "swiss"]
[EventCountry "EST"]
[SourceTitle "playchess.com"]
[Source "ChessBase"]
[SourceQuality "1"]
[TimeControl "5400+30"]

{[%evp 9,87,4,6,-9,0,0,6,-36,-33,-72,-66,-62,-74,-74,-76,-80,-42,-42,-47,-47,-42,-41,-40,-37,-57,-55,-54,-54,0,0,-18,-23,0,-30,-28,-18,0,0,0,0,0,0,0,-3,0,0,0,0,0,2,22,37,107,121,111,133,368,338,461,453,798,207,5431,4890,29975,29976,29984,29985,29985,29986,29986,29987,29987,29988,29988,29988,29988,29989,29988,29989]} 1. c4 {[%emt 0:00:09]} c6 {[%emt 0:00:05]} 2. Qa4 {[%emt 0:00:06]} Nf6 {[%emt 0:01:53]} 3. Nf3 {[%emt 0:00:20]} e6 {[%emt 0:03:20]} 4. d4 {[%emt 0:00:54]} d5 {[%emt 0:00:14]} 5. Bg5 {[%emt 0:01:32]} Nbd7 {[%emt 0:01:13]} 6. Nbd2 {[%emt 0:02:07] [#] A11: English Opening: 1...c6.} h6 $146 {[%emt 0:05:02]} ({Predecessor:} 6... Bd6 7. g3 O-O 8. Bg2 Qc7 9. O-O Ne4 10. Be3 c5 11. cxd5 exd5 12. dxc5 Bxc5 {½-½ (66) Romero Sanchez,Y-Foschiatti,Z Rio Grande 2018}) 7. Bh4 {[%emt 0:01:00]} Nb6 {[%emt 0:02:51]} 8. Qc2 {[%emt 0:00:27] The position is equal.} Nxc4 {[%emt 0:00:43]} 9. Nxc4 {[%emt 0:02:55]} dxc4 {[%emt 0:00:07]} 10. Bxf6 {[%emt 0:00:05]} Bb4+ {[%emt 0:01:19]} (10... Qxf6 11. Qxc4 Bd6 12. e3 $11) 11. Kd1 {[%emt 0:00:13]} Qxf6 {[%emt 0:01:20]} 12. Qxc4 {[%emt 0:00:05]} a5 {[%emt 0:01:39][%cal Oe6e5]} 13. e3 {[%emt 0:01:36]} O-O {[%emt 0:00:50][%cal Oe6e5]} 14. Bd3 {[%emt 0:00:37]} Bd6 {[%emt 0:03:08]} 15. Ke2 {[%emt 0:01:02]} e5 {[%emt 0:02:02]} 16. dxe5 {[%emt 0:05:29]} Bxe5 {[%emt 0:00:17]} 17. Nxe5 {[%emt 0:00:41]} Qxe5 {[%emt 0:00:14]} 18. Qc3 {[%emt 0:00:15]} Qh5+ {[%emt 0:02:37]} ({Black should try} 18... Qg5 $15) 19. f3 $11 {[%emt 0:00:14]} Re8 {[%emt 0:00:56] Threatens to win with ...Qg5.} 20. Kf2 {[%emt 0:01:54]} Be6 {[%emt 0:05:21]} (20... Qg5 $5 {[%cal Rg5e3]}) 21. a3 {[%emt 0:01:44]} a4 {[%emt 0:07:07]} 22. Bc2 {[%emt 0:01:35] Against Bb3} Rad8 {[%emt 0:02:56]} 23. h4 {[%emt 0:00:23]} Bb3 {[%emt 0:01:07]} 24. g4 {[%emt 0:09:39]} Qb5 {[%emt 0:02:25]} 25. Bxb3 {[%emt 0:00:21]} axb3 {[%emt 0:00:48]} 26. Rad1 {[%emt 0:01:00] Inhibits Rd3.} Rd5 {[%emt 0:01:09]} 27. Rxd5 {[%emt 0:01:28]} Qxd5 {[%emt 0:00:28][%mdl 4096] Endgame KQR-KQR} 28. e4 {[%emt 0:00:10]} Qe6 {[%emt 0:03:30]} 29. Rd1 {[%emt 0:00:54] Prevents Rd8.} h5 {[%emt 0:00:16]} 30. gxh5 {[%emt 0:00:28]} Qh3 {[%emt 0:00:13]} (30... Kh8 $14) 31. Rg1 $40 {[%emt 0:02:12][%csl Gg1][%cal Rc3g7][%mdl 128] White wants a kill.} (31. Qxb3 $6 Rxe4 32. Rd8+ Kh7 $11) 31... Qh2+ {[%emt 0:03:42]} 32. Rg2 {[%emt 0:01:20][%csl Gg2][%cal Rc3g7] Dancing on a razor blade.} Qxh4+ $2 {[%emt 0:01:01] [#] This costs Black the game.} (32... Qe5 $16 {keeps fighting.}) 33. Ke2 $1 $18 {[%emt 0:06:15][%csl Gg2][%cal Rc3g7]} ({Stronger than} 33. Kg1 f6 $11) 33... f6 {[%emt 0:00:23]} 34. Qxb3+ {[%emt 0:00:07]} Kh8 {[%emt 0:00:24]} (34... Kf8 $142 35. Qb4+ (35. Qxb7 Rxe4+ 36. Kd3 Re7 $16) 35... Re7 36. Rxg7 Kxg7 37. Qxe7+ Kh6 38. Qxb7 Qh2+ 39. Kd3 Qxh5 40. Qxc6 Qxf3+ 41. Kc4 Qf1+ 42. Kb3 Qd1+ 43. Ka2 Kg7) 35. Qxb7 $2 {[%emt 0:00:49]} (35. Qf7 {[%csl Gg2][%cal Rf7g7]} Rg8 36. h6) 35... Rxe4+ $2 {[%emt 0:01:03] [#]} (35... Rg8 36. h6 (36. Qxc6 Qh3 $16) 36... gxh6 37. Rxg8+ Kxg8 38. Qc8+ Kf7) 36. Kd3 $1 {[%emt 0:00:58][%csl Gg2][%cal Rb7g7]} ({Inferior is} 36. fxe4 Qxe4+ 37. Kd1 Qxg2 $14) 36... Rd4+ {[%emt 0:09:20]} 37. Kc2 {[%emt 0:01:33][%csl Gg2][%cal Rb7g7] White mates.} Rd7 {[%emt 0:08:23]} 38. Qc8+ {[%emt 0:00:48]} Kh7 {[%emt 0:00:23]} 39. Qxd7 {[%emt 0:00:05][%csl Gg2][%cal Rd7g7]} Qc4+ {[%emt 0:00:10]} 40. Kd2 {[%emt 0:00:13][%csl Gg2][%cal Rd7g7]} Qf4+ {[%emt 0:00:42]} 41. Ke2 {[%emt 0:00:05][%csl Gg2][%cal Rd7g7]} Qe5+ {[%emt 0:00:33]} 42. Kf1 {[%emt 0:00:06][%csl Gg2][%cal Rd7g7]} Qb5+ {[%emt 0:01:15]} 43. Kg1 {[%emt 0:00:21][%csl Gg2][%cal Rd7g7]} Qc5+ {[%emt 0:00:17]} 44. Kh1 {[%emt 0:00:07] Weighted Error Value: White=0.23 (precise) /Black=0.37} 1-0

[Event "32nd NATO Championship 2022"]
[Site "Tartu"]
[Date "2022.06.29"]
[Round "4.8"]
[White "Nikomanis, Andreas"]
[Black "Graczyk, Damian"]
[Result "1/2-1/2"]
[ECO "B01"]
[WhiteElo "2068"]
[BlackElo "2151"]
[Annotator "RC"]
[PlyCount "150"]
[EventDate "2022.06.27"]
[EventType "swiss"]
[EventCountry "EST"]
[SourceTitle "playchess.com"]
[Source "ChessBase"]
[SourceQuality "1"]
[TimeControl "5400+30"]

1. e4 {[%emt 0:00:04]} d5 {[%emt 0:00:10]} 2. exd5 {[%emt 0:00:08]} Qxd5 {[%emt 0:00:06]} 3. Nc3 {[%emt 0:00:07]} Qd8 {[%emt 0:00:03]} 4. d4 {[%emt 0:00:21]} Nf6 {[%emt 0:00:03]} 5. Nf3 {[%emt 0:00:54]} Bg4 {[%emt 0:00:30]} 6. h3 {[%emt 0:00:07]} Bxf3 {[%emt 0:00:08]} 7. Qxf3 {[%emt 0:00:05]} c6 {[%emt 0:00:02]} 8. Be3 {[%emt 0:00:36]} e6 {[%emt 1:33:28]} 9. Bd3 {[%emt 0:00:51]} Nd5 {[%emt 0:00:38]} 10. O-O {[%emt 0:05:15]} Nxc3 {[%emt 0:00:58]} 11. bxc3 {[%emt 0:00:07]} Qd5 {[%emt 0:00:02]} 12. Qg3 {[%emt 0:03:21]} Nd7 {[%emt 0:02:24]} 13. c4 {[%emt 0:01:04]} Qd6 {[%emt 0:02:37]} 14. Qf3 {[%emt 0:02:17]} Nf6 {[%emt 0:17:48]} 15. Rab1 {[%emt 0:04:46]} Qd7 {[%emt 0:01:24]} 16. d5 {[%emt 0:07:06]} exd5 {[%emt 0:14:36]} 17. cxd5 {[%emt 1:11:51]} Nxd5 {[%emt 0:00:06]} 18. Bd4 {[%emt 0:03:45]} f6 {[%emt 0:18:53]} 19. Rfe1+ {[%emt 0:03:31]} Ne7 {[%emt 0:02:49]} 20. Bc5 {[%emt 0:14:05]} b6 {[%emt 0:03:12]} 21. Bxe7 {[%emt 0:06:26]} Bxe7 {[%emt 0:00:06]} 22. Rbd1 {[%emt 0:02:23]} Qc7 {[%emt 0:03:14]} 23. Qh5+ {[%emt 0:04:21]} Kf8 {[%emt 0:02:41]} 24. Re4 {[%emt 0:00:49]} Rd8 {[%emt 0:29:52]} 25. Rde1 {[%emt 0:01:07]} Rd7 {[%emt 0:00:07]} 26. Bc4 {[%emt 0:01:24]} g6 {[%emt 0:00:02]} 27. Qe2 {[%emt 0:09:35]} Bc5 {[%emt 0:03:16]} 28. Qf3 {[%emt 0:06:22]} Kg7 {[%emt 0:01:53]} 29. Re6 {[%emt 0:00:26]} Rf8 {[%emt 0:02:21]} 30. Rxc6 {[%emt 0:01:46]} Qd8 {[%emt 0:01:53]} 31. Bd3 {[%emt 0:01:43]} Rd6 {[%emt 0:03:18]} 32. h4 {[%emt 0:00:39]} Rxc6 {[%emt 0:00:47]} 33. Qxc6 {[%emt 0:00:04]} Qd4 {[%emt 0:00:19]} 34. Re2 {[%emt 0:02:29]} Qxh4 {[%emt 0:02:08]} 35. a4 {[%emt 0:00:41]} a5 {[%emt 0:01:09]} 36. Bb5 {[%emt 0:02:20]} Qf4 {[%emt 0:04:03]} 37. Qd5 {[%emt 0:02:25]} h5 {[%emt 0:02:33]} 38. Bc4 {[%emt 0:00:42]} h4 {[%emt 0:03:04]} 39. Qd7+ {[%emt 0:00:19]} Kh6 {[%emt 0:04:25]} 40. Qd2 {[%emt 0:03:26]} Qxd2 {[%emt 0:00:14]} 41. Rxd2 {[%emt 0:00:04]} Re8 {[%emt 0:00:10]} 42. Kf1 {[%emt 0:00:48]} Kg5 {[%emt 0:01:30]} 43. Rd5+ {[%emt 0:00:22]} f5 {[%emt 0:00:18]} 44. Bd3 {[%emt 0:02:44]} Bb4 {[%emt 0:00:51]} 45. Be2 {[%emt 0:00:25]} Re4 {[%emt 0:00:37]} 46. Rd1 {[%emt 0:00:05]} Bc3 {[%emt 0:00:55]} 47. Bb5 {[%emt 0:00:15]} Rb4 {[%emt 0:00:57]} 48. Ke2 {[%emt 0:00:52]} Re4+ {[%emt 0:00:57]} 49. Kd3 {[%emt 0:00:23]} Rd4+ {[%emt 0:00:15]} 50. Ke2 {[%emt 0:00:02]} Rxd1 {[%emt 0:00:05]} 51. Kxd1 {[%emt 0:00:06]} Kf4 {[%emt 0:03:15]} 52. Ke2 {[%emt 0:00:13]} Bd4 {[%emt 0:00:12]} 53. Bc6 {[%emt 0:01:05]} g5 {[%emt 0:00:14]} 54. Bb7 {[%emt 0:09:26]} g4 {[%emt 0:04:08]} 55. Bc6 {[%emt 0:00:15]} Bc5 {[%emt 0:00:02]} 56. Bb7 {[%emt 0:02:00]} g3 {[%emt 0:02:22]} 57. fxg3+ {[%emt 0:00:23]} Kxg3 {[%emt 0:00:02]} 58. c4 {[%emt 0:00:23]} f4 {[%emt 0:00:23]} 59. Bf3 {[%emt 0:00:41]} h3 {[%emt 0:00:17]} 60. gxh3 {[%emt 0:00:04]} Kxh3 {[%emt 0:00:03]} 61. Bd5 {[%emt 0:00:27]} Kg3 {[%emt 0:00:18]} 62. Bf3 {[%emt 0:00:11]} Kh4 {[%emt 0:00:18]} 63. Bd5 {[%emt 0:00:10]} Kg5 {[%emt 0:00:02]} 64. Kf3 {[%emt 0:08:32]} Kf5 {[%emt 0:00:01]} 65. Bc6 {[%emt 0:00:12]} Ke5 {[%emt 0:00:05]} 66. Be8 {[%emt 0:01:07]} Be3 {[%emt 0:00:02]} 67. Bd7 {[%emt 0:00:21]} Kd4 {[%emt 0:00:01]} 68. Bb5 {[%emt 0:00:06]} Kc5 {[%emt 0:00:12]} 69. Ke4 {[%emt 0:00:09]} Kb4 {[%emt 0:00:11]} 70. Kf3 {[%emt 0:00:06]} Bc1 {[%emt 0:00:32]} 71. Ke4 {[%emt 0:00:08]} Kc5 {[%emt 0:00:02]} 72. Kf3 {[%emt 0:00:07]} Kd4 {[%emt 0:00:05]} 73. Ba6 {[%emt 0:00:13]} Kc5 {[%emt 0:00:15]} 74. Bb5 {[%emt 0:10:50]} Kd4 {[%emt 0:00:04]} 75. Ba6 {[%emt 0:00:03]} Ke5 {[%emt 0:09:03]} 1/2-1/2

[Event "32nd NATO Championship 2022"]
[Site "Tartu"]
[Date "2022.06.29"]
[Round "4.23"]
[White "Heran-Boily, Samuel"]
[Black "Flaata, Alexander R."]
[Result "0-1"]
[ECO "B30"]
[WhiteElo "1871"]
[BlackElo "2033"]
[Annotator "RC"]
[PlyCount "100"]
[EventDate "2022.06.27"]
[EventType "swiss"]
[EventCountry "EST"]
[SourceTitle "playchess.com"]
[Source "ChessBase"]
[SourceQuality "1"]
[TimeControl "5400+30"]

1. e4 {[%emt 0:00:05]} c5 {[%emt 0:00:10]} 2. Nf3 {[%emt 0:00:06]} Nc6 {[%emt 0:00:20]} 3. Bc4 {[%emt 0:00:13]} e6 {[%emt 0:00:51]} 4. O-O {[%emt 0:00:15]} d5 {[%emt 0:01:33]} 5. exd5 {[%emt 0:00:10]} exd5 {[%emt 0:00:06]} 6. Re1+ {[%emt 0:00:09]} Be7 {[%emt 0:00:19]} 7. Bb3 {[%emt 0:00:09]} Nf6 {[%emt 0:01:37]} 8. c3 {[%emt 0:06:28]} Bg4 {[%emt 0:03:37]} 9. h3 {[%emt 0:00:41]} Bh5 {[%emt 0:00:54]} 10. d3 {[%emt 0:01:06]} O-O {[%emt 0:00:31]} 11. Nbd2 {[%emt 0:00:39]} Bg6 {[%emt 0:03:58]} 12. Nf1 {[%emt 0:00:20]} b5 {[%emt 0:02:20]} 13. Bg5 {[%emt 0:11:40]} c4 {[%emt 0:01:53]} 14. Bc2 {[%emt 0:01:55]} Qc7 {[%emt 0:01:53]} 15. Ng3 {[%emt 0:12:04]} Rfe8 {[%emt 0:05:26]} 16. d4 {[%emt 0:12:25]} b4 {[%emt 0:08:24]} 17. Ba4 {[%emt 0:06:16]} Red8 {[%emt 0:13:05]} 18. Bxc6 {[%emt 0:01:08]} Rab8 {[%emt 0:00:47]} 19. Ba4 {[%emt 0:02:09]} bxc3 {[%emt 0:01:47]} 20. bxc3 {[%emt 0:00:18]} Ba3 {[%emt 0:00:09]} 21. Ne5 {[%emt 0:03:47]} Bb2 {[%emt 0:01:07]} 22. Nxg6 {[%emt 0:00:51]} hxg6 {[%emt 0:00:11]} 23. Rb1 {[%emt 0:05:22]} Bxc3 {[%emt 0:00:05]} 24. Rxb8 {[%emt 0:01:19]} Rxb8 {[%emt 0:00:06]} 25. Bxf6 {[%emt 0:08:34]} Bxe1 {[%emt 0:00:28]} 26. Be5 {[%emt 0:00:22]} Bxf2+ {[%emt 0:00:10]} 27. Kxf2 {[%emt 0:00:18]} Rb2+ {[%emt 0:00:20]} 28. Kg1 {[%emt 0:02:04]} Qa5 {[%emt 0:02:04]} 29. Bc6 {[%emt 0:06:56]} c3 {[%emt 0:00:27]} 30. Qf3 {[%emt 0:04:38]} c2 {[%emt 0:02:12]} 31. Ne2 {[%emt 0:02:47]} Qe1+ {[%emt 0:01:05]} 32. Kh2 {[%emt 0:00:13]} Qxe2 {[%emt 0:01:57]} 33. Qxe2 {[%emt 0:00:06]} c1=Q {[%emt 0:00:08]} 34. Qa6 {[%emt 0:00:44]} Rb1 {[%emt 0:09:01]} 35. Bxd5 {[%emt 0:01:50]} Qg1+ {[%emt 0:00:12]} 36. Kg3 {[%emt 0:00:12]} Qe1+ {[%emt 0:00:08]} 37. Kg4 {[%emt 0:01:37]} Kh7 {[%emt 0:00:58]} 38. Qxa7 {[%emt 0:02:53]} g5 {[%emt 0:16:13]} 39. Bg3 {[%emt 0:02:55]} f5+ {[%emt 0:00:27]} 40. Kxf5 {[%emt 0:01:26]} Qxg3 {[%emt 0:00:29]} 41. Qa8 {[%emt 0:01:51]} Qf4+ {[%emt 0:02:58]} 42. Ke6 {[%emt 0:00:12]} Rb6+ {[%emt 0:00:29]} 43. Bc6 {[%emt 0:00:48]} Qe4+ {[%emt 0:01:31]} 44. Kd6 {[%emt 0:00:40]} Qxd4+ {[%emt 0:00:48]} 45. Kc7 {[%emt 0:00:12]} Rb4 {[%emt 0:00:54]} 46. Qf8 {[%emt 0:01:44]} Qa7+ {[%emt 0:01:27]} 47. Kd6 {[%emt 0:00:19]} Rd4+ {[%emt 0:00:46]} 48. Ke5 {[%emt 0:00:16]} Rf4 {[%emt 0:01:51]} 49. Qe8 {[%emt 0:01:14]} Qd4+ {[%emt 0:01:31]} 50. Ke6 {[%emt 0:00:12]} Rf6+ {[%emt 0:15:47]} 0-1

[Event "32nd NATO Championship 2022"]
[Site "Tartu"]
[Date "2022.06.29"]
[Round "4.27"]
[White "Windey, Luc"]
[Black "Wagenaar, Harm Theo"]
[Result "1/2-1/2"]
[ECO "D02"]
[WhiteElo "1635"]
[BlackElo "1893"]
[Annotator "NA RC"]
[PlyCount "43"]
[EventDate "2022.06.27"]
[EventType "swiss"]
[EventCountry "EST"]
[SourceTitle "playchess.com"]
[Source "ChessBase"]
[SourceQuality "1"]
[TimeControl "5400+30"]

{[%evp 8,43,5,-5,32767,32767,32767,32767,32767,32767,32767,32767,32767,32767,32767,32767,32767,32767,32767,32767,32767,32767,-58,-72,-57,-55,32767,-59,-54,-58,-63,-65,-7,-7,-12,-15,-10,0]} 1. d4 {[%emt 0:00:06]} d5 {[%emt 0:00:09]} 2. Nf3 {[%emt 0:00:06]} Nf6 {[%emt 0:00:30]} 3. Bf4 {[%emt 0:00:06]} c5 {[%emt 0:00:28]} 4. e3 {[%emt 0:00:15]} Nc6 {[%emt 0:00:31]} 5. c3 {[%emt 0:00:12]} Qb6 {[%emt 0:00:33]} 6. Qb3 {[%emt 0:00:07]} c4 {[%emt 0:00:22]} 7. Qxb6 {[%emt 0:00:20]} axb6 {[%emt 0:00:08]} 8. Nbd2 {[%emt 0:00:21]} b5 {[%emt 0:00:37]} 9. Be2 {[%emt 0:00:21]} b4 {[%emt 0:03:10]} 10. O-O {[%emt 0:00:35]} bxc3 {[%emt 0:00:06]} 11. bxc3 {[%emt 0:00:11]} Ra3 {[%emt 0:05:28]} 12. Rfc1 {[%emt 0:04:45]} e6 {[%emt 0:00:42]} 13. Ne5 {[%emt 0:00:19]} Be7 {[%emt 0:05:27]} 14. Bf3 {[%emt 0:04:55]} Nxe5 {[%emt 0:09:48]} 15. dxe5 {[%emt 0:01:48]} Nd7 {[%emt 0:00:10]} 16. e4 {[%emt 0:00:22]} dxe4 {[%emt 0:03:45]} 17. Bxe4 {[%emt 0:00:34]} (17. Nxe4 $11 O-O 18. Rab1) 17... Nc5 {[%emt 0:00:15]} 18. Be3 {[%emt 0:08:48]} Nxe4 {[%emt 0:05:16]} 19. Nxe4 {[%emt 0:00:55]} O-O {[%emt 0:00:39]} (19... Bd7 $1 $15) 20. Nd6 {[%emt 0:01:23]} Bxd6 {[%emt 0:10:50]} 21. exd6 {[%emt 0:00:14]} Bd7 {[%emt 0:05:16]} 22. Bc5 $11 {[%emt 0:03:34]} 1/2-1/2

[Event "32nd NATO Championship 2022"]
[Site "Tartu"]
[Date "2022.06.29"]
[Round "4.29"]
[White "Wendler, Edward"]
[Black "Smit, Jan"]
[Result "1-0"]
[ECO "B08"]
[WhiteElo "1839"]
[BlackElo "1741"]
[Annotator "NA RC"]
[PlyCount "81"]
[EventDate "2022.06.27"]
[EventType "swiss"]
[EventCountry "EST"]
[SourceTitle "playchess.com"]
[Source "ChessBase"]
[SourceQuality "1"]
[TimeControl "5400+30"]

1. e4 {[%emt 0:00:04]} g6 {[%emt 0:00:11]} 2. d4 {[%emt 0:00:21]} Bg7 {[%emt 0:00:02]} 3. Nf3 {[%emt 0:01:47]} d6 {[%emt 0:00:08]} 4. Bc4 {[%emt 0:00:40]} Nf6 {[%emt 0:00:31]} 5. Nc3 {[%emt 1:30:08]} c6 {[%emt 0:01:52]} 6. Bb3 {[%emt 0:00:00]} b5 {[%emt 0:03:02]} 7. a3 {[%emt 0:00:00]} a5 {[%emt 0:05:43]} 8. O-O {[%emt 0:00:00]} O-O {[%emt 0:02:58]} 9. h3 {[%emt 0:00:00]} Qc7 {[%emt 0:11:04]} 10. e5 {[%emt 0:00:00]} Nd5 {[%emt 0:20:34]} 11. Nxd5 {[%emt 0:00:00]} cxd5 {[%emt 0:00:09]} 12. Bxd5 {[%emt 0:00:00]} Ra7 {[%emt 0:03:19]} 13. Bf4 {[%emt 0:00:00]} Nc6 {[%emt 0:05:23]} 14. exd6 {[%emt 0:00:00]} exd6 {[%emt 0:00:04]} 15. Re1 {[%emt 0:00:00]} Be6 {[%emt 0:04:05]} (15... Ne7 $16 {was called for.}) 16. Bxe6 {[%emt 0:00:00]} fxe6 {[%emt 0:00:02]} 17. Bg3 {[%emt 0:00:00]} e5 {[%emt 0:11:29]} 18. dxe5 {[%emt 0:00:00]} dxe5 {[%emt 0:02:36]} (18... Nxe5 $142 19. Nxe5 dxe5 20. Qd5+ Qf7 21. Qxb5 Rb7 22. Qxa5 Rxb2) 19. Qd5+ {[%emt 0:00:00]} Kh8 {[%emt 0:02:29]} 20. Nxe5 {[%emt 0:00:00]} ({But not} 20. Qxb5 Rb7 21. Qc5 Qb6 $18) 20... Bxe5 $2 {[%emt 0:02:36]} (20... Nxe5 {keeps fighting.} 21. Bxe5 Qxc2) 21. Bxe5+ {[%emt 0:00:00]} (21. Rxe5 $142 Qd7 22. Qc5 (22. Qxb5 Nxe5 23. Bxe5+ Kg8 $16)) 21... Nxe5 {[%emt 0:00:02]} 22. Qxe5+ {[%emt 0:00:00]} Kg8 {[%emt 0:00:58]} 23. Qxb5 {[%emt 0:00:00]} Qxc2 {[%emt 0:04:54]} 24. Re2 {[%emt 0:00:00]} Qf5 {[%emt 0:04:53]} 25. Qc4+ {[%emt 0:00:00]} Rff7 {[%emt 0:02:28]} 26. Rae1 {[%emt 0:00:00]} Rac7 {[%emt 0:01:28]} 27. Re8+ {[%emt 0:04:37]} Kg7 {[%emt 0:00:02]} 28. Qd4+ {[%emt 0:00:09]} Qf6 {[%emt 0:06:01]} 29. Qxf6+ {[%emt 0:03:37]} Kxf6 {[%emt 0:00:37]} 30. R1e2 {[%emt 0:01:08]} a4 {[%emt 0:01:58]} 31. R8e4 {[%emt 0:00:46]} Ra7 {[%emt 0:02:21]} 32. Rf4+ {[%emt 0:00:04]} Kg7 {[%emt 0:00:04]} 33. Rxf7+ {[%emt 0:00:09]} Kxf7 {[%emt 0:00:08]} 34. Re4 {[%emt 0:01:05]} Kf6 {[%emt 0:00:02]} 35. f3 {[%emt 0:00:09]} h5 {[%emt 0:00:46]} 36. h4 {[%emt 0:00:10]} Kf5 {[%emt 0:00:54]} 37. Kh2 {[%emt 0:00:23]} Ra5 {[%emt 0:01:05]} 38. Kg3 {[%emt 0:00:16]} Kf6 {[%emt 0:00:23]} 39. Kf4 {[%emt 0:02:27]} g5+ {[%emt 0:01:45]} 40. hxg5+ $18 {[%emt 0:00:15]} Rxg5 {[%emt 0:00:03]} 41. Re6+ {[%emt 0:01:16]} 1-0